[Event "FIDE Chesscom Grand Swiss 2021"]
[Site "Riga"]
[Date "2021.11.07"]
[Round "11.31"]
[White "Tari, Aryan"]
[Black "Nguyen, Thai Dai Van"]
[Result "1/2-1/2"]
[ECO "C80"]
[WhiteElo "2646"]
[BlackElo "2577"]
[Annotator "RC"]
[PlyCount "84"]
[EventDate "2021.10.27"]
[EventType "swiss"]
[EventCountry "LAT"]
[Tiebreak "Cut1 Buchholz+Sonneborn-Berger (Swiss)"]
[SourceTitle "playchess.com"]
[Source "ChessBase"]
[SourceQuality "1"]
[TimeControl "40/6000+30:20/3000+30:900+30"]

1. e4 {[%emt 0:00:08]} e5 {[%emt 0:00:55]} 2. Nf3 {[%emt 0:00:08]} Nc6 {
[%emt 0:00:23]} 3. Bb5 {[%emt 0:00:10]} a6 {[%emt 0:00:14]} 4. Ba4 {[%emt 0:00:
05]} Nf6 {[%emt 0:00:50]} 5. O-O {[%emt 0:00:24]} Nxe4 {[%emt 0:01:17]} 6. Re1
{[%emt 0:06:34]} b5 {[%emt 0:30:21]} 7. Nxe5 {[%emt 0:39:03]} Nxe5 {[%emt 0:02:
55]} 8. Rxe4 {[%emt 0:00:39]} d6 {[%emt 0:11:48]} 9. Bb3 {[%emt 0:06:19]} Bb7 {
[%emt 0:11:50]} 10. Re1 {[%emt 0:06:18]} Be7 {[%emt 0:00:36]} 11. d4 {[%emt 0:
01:28]} Ng6 {[%emt 0:01:10]} 12. Nc3 {[%emt 0:01:52]} O-O {[%emt 0:03:25]} 13.
Qh5 {[%emt 0:01:42]} Qd7 {[%emt 0:04:30]} 14. Nd5 {[%emt 0:02:18]} Bxd5 {
[%emt 0:07:31]} 15. Bxd5 {[%emt 0:00:46]} c6 {[%emt 0:00:20]} 16. Be4 {[%emt 0:
02:47]} Rfe8 {[%emt 0:00:10]} 17. Bd2 {[%emt 0:01:25]} Bf6 {[%emt 0:02:19]} 18.
c3 {[%emt 0:01:32]} d5 {[%emt 0:02:26]} 19. Bf5 {[%emt 0:01:35]} Qb7 {[%emt 0:
04:14]} 20. b4 {[%emt 0:03:20]} Rxe1+ {[%emt 0:02:46]} 21. Rxe1 {[%emt 0:00:21]
} Nf8 {[%emt 0:03:43]} 22. Qf3 {[%emt 0:01:30]} a5 {[%emt 0:00:08]} 23. a3 {
[%emt 0:05:07]} axb4 {[%emt 0:00:06]} 24. axb4 {[%emt 0:00:05]} Ra2 {[%emt 0:
02:06]} 25. Qf4 {[%emt 0:03:23]} Qa8 {[%emt 0:06:30]} 26. g3 {[%emt 0:03:37]}
Ra1 {[%emt 0:01:14]} 27. Bb1 {[%emt 0:03:31]} Ra7 {[%emt 0:01:05]} 28. Kg2 {
[%emt 0:01:21]} Qd8 {[%emt 0:00:42]} 29. Bd3 {[%emt 0:01:41]} Ne6 {[%emt 0:00:
47]} 30. Qg4 {[%emt 0:00:16]} Ra2 {[%emt 0:00:56]} 31. Bc1 {[%emt 0:04:18]} Qe7
{[%emt 0:03:57]} 32. Bf5 {[%emt 0:03:20]} Ra8 {[%emt 0:02:05]} 33. h4 {[%emt 0:
01:40]} Re8 {[%emt 0:01:19]} 34. Bd2 {[%emt 0:00:20]} Qd7 {[%emt 0:02:11]} 35.
h5 {[%emt 0:00:43]} g6 {[%emt 0:00:03]} 36. Bd3 {[%emt 0:01:32]} Bg7 {[%emt 0:
00:28]} 37. h6 {[%emt 0:01:48]} f5 {[%emt 0:01:00]} 38. Qh4 {[%emt 0:02:40]}
Bf8 {[%emt 0:00:01]} 39. Ra1 {[%emt 0:02:36]} Be7 {[%emt 0:00:14]} 40. Qh1 {
[%emt 0:00:11]} Bd6 {[%emt 0:00:30]} 41. Kg1 {[%emt 0:09:36]} Be7 {[%emt 0:12:
59]} 42. Re1 {[%emt 0:03:21]} Bg5 {[%emt 0:04:22]} 1/2-1/2

[Event "FIDE Chesscom Grand Swiss 2021"]
[Site "Riga"]
[Date "2021.11.07"]
[Round "11.32"]
[White "Tabatabaei, M. Amin"]
[Black "Kuybokarov, Temur"]
[Result "1/2-1/2"]
[ECO "D02"]
[WhiteElo "2639"]
[BlackElo "2549"]
[Annotator "RC"]
[PlyCount "90"]
[EventDate "2021.10.27"]
[EventType "swiss"]
[EventCountry "LAT"]
[Tiebreak "Cut1 Buchholz+Sonneborn-Berger (Swiss)"]
[SourceTitle "playchess.com"]
[Source "ChessBase"]
[SourceQuality "1"]
[TimeControl "40/6000+30:20/3000+30:900+30"]

1. d4 {[%emt 0:04:03]} d5 {[%emt 0:00:19]} 2. Nf3 {[%emt 0:00:12]} Nf6 {
[%emt 0:00:32]} 3. Bf4 {[%emt 0:00:05]} c5 {[%emt 0:04:53]} 4. e3 {[%emt 0:00:
34]} Nc6 {[%emt 0:00:40]} 5. Nbd2 {[%emt 0:00:09]} Bg4 {[%emt 0:03:28]} 6. c3 {
[%emt 0:09:26]} e6 {[%emt 0:00:49]} 7. Qb3 {[%emt 0:00:16]} Qc8 {[%emt 0:01:55]
} 8. h3 {[%emt 0:00:07]} Bh5 {[%emt 0:02:00]} 9. Be2 {[%emt 0:01:00]} Be7 {
[%emt 0:10:35]} 10. O-O {[%emt 0:00:12]} O-O {[%emt 0:08:14]} 11. Qd1 {[%emt 0:
00:36]} Qd8 {[%emt 0:02:27]} 12. a4 {[%emt 0:02:08]} Bd6 {[%emt 0:04:29]} 13.
dxc5 {[%emt 0:05:54]} Bxc5 {[%emt 0:00:22]} 14. a5 {[%emt 0:01:48]} Bd6 {
[%emt 0:04:21]} 15. a6 {[%emt 0:02:12]} b6 {[%emt 0:01:35]} 16. Qa4 {[%emt 0:
00:45]} Rc8 {[%emt 0:06:53]} 17. Bb5 {[%emt 0:02:38]} Ne7 {[%emt 0:01:24]} 18.
Rfe1 {[%emt 0:04:11]} Bg6 {[%emt 0:06:59]} 19. Rad1 {[%emt 0:14:23]} Nf5 {
[%emt 0:11:11]} 20. g4 {[%emt 0:09:46]} Ne7 {[%emt 0:00:27]} 21. Ne5 {[%emt 0:
01:22]} Qc7 {[%emt 0:04:26]} 22. Ndc4 {[%emt 0:06:38]} dxc4 {[%emt 0:01:58]}
23. Rxd6 {[%emt 0:01:30]} Qxd6 {[%emt 0:00:33]} 24. Nxg6 {[%emt 0:00:08]} Qc5 {
[%emt 0:00:38]} 25. Nxf8 {[%emt 0:00:09]} Kxf8 {[%emt 0:00:08]} 26. Rd1 {
[%emt 0:00:21]} e5 {[%emt 0:03:55]} 27. Bh2 {[%emt 0:13:37]} g5 {[%emt 0:03:45]
} 28. b4 {[%emt 0:10:50]} cxb3 {[%emt 0:02:11]} 29. Qxb3 {[%emt 0:00:02]} Ng6 {
[%emt 0:02:37]} 30. c4 {[%emt 0:03:19]} Kg7 {[%emt 0:08:13]} 31. Qd3 {[%emt 0:
00:45]} Qb4 {[%emt 0:00:49]} 32. Bg3 {[%emt 0:04:36]} Qb2 {[%emt 0:00:57]} 33.
Qf5 {[%emt 0:01:45]} Rc5 {[%emt 0:00:15]} 34. Qd3 {[%emt 0:05:23]} h5 {[%emt 0:
00:11]} 35. Rd2 {[%emt 0:01:20]} Qc1+ {[%emt 0:01:24]} 36. Rd1 {[%emt 0:00:01]}
Qb2 {[%emt 0:00:05]} 37. Qd2 {[%emt 0:04:16]} Qb3 {[%emt 0:00:46]} 38. Qe2 {
[%emt 0:02:10]} hxg4 {[%emt 0:00:44]} 39. hxg4 {[%emt 0:00:01]} Ne4 {[%emt 0:
04:56]} 40. Rd7 {[%emt 0:01:18]} Nxg3 {[%emt 0:07:30]} 41. fxg3 {[%emt 0:50:02]
} e4 {[%emt 0:03:10]} 42. Rxa7 {[%emt 0:00:00]} Ne5 {[%emt 0:00:07]} 43. Re7
Nf3+ {[%emt 0:00:03]} 44. Kg2 {[%emt 0:00:01]} Qb1 {[%emt 0:00:40]} 45. Rxe4
Ne1+ {[%emt 0:00:06]} 1/2-1/2

[Event "FIDE Chesscom Grand Swiss 2021"]
[Site "Riga"]
[Date "2021.11.07"]
[Round "11.33"]
[White "Sadhwani, Raunak"]
[Black "Niemann, Hans Moke"]
[Result "1/2-1/2"]
[ECO "C93"]
[WhiteElo "2609"]
[BlackElo "2638"]
[Annotator "RC"]
[PlyCount "149"]
[EventDate "2021.10.27"]
[EventType "swiss"]
[EventCountry "LAT"]
[Tiebreak "Cut1 Buchholz+Sonneborn-Berger (Swiss)"]
[SourceTitle "playchess.com"]
[Source "ChessBase"]
[SourceQuality "1"]
[TimeControl "40/6000+30:20/3000+30:900+30"]

1. e4 {[%emt 0:00:02]} e5 {[%emt 0:00:21]} 2. Nf3 {[%emt 0:00:04]} Nc6 {
[%emt 0:00:10]} 3. Bb5 {[%emt 0:00:04]} a6 {[%emt 0:00:11]} 4. Ba4 {[%emt 0:00:
03]} Nf6 {[%emt 0:00:14]} 5. O-O {[%emt 0:00:05]} Be7 {[%emt 0:03:03]} 6. Re1 {
[%emt 0:00:09]} b5 {[%emt 0:00:05]} 7. Bb3 {[%emt 0:00:03]} O-O {[%emt 0:00:14]
} 8. c3 {[%emt 0:00:01]} d6 {[%emt 0:02:06]} 9. h3 {[%emt 0:00:05]} Bb7 {
[%emt 0:00:09]} 10. d4 {[%emt 0:00:05]} Re8 {[%emt 0:00:06]} 11. Ng5 {[%emt 0:
00:02]} Rf8 {[%emt 0:00:06]} 12. Nf3 {[%emt 0:00:03]} h6 {[%emt 0:06:13]} 13.
Nbd2 {[%emt 0:01:01]} Re8 {[%emt 0:00:14]} 14. Nf1 {[%emt 0:00:10]} Bf8 {
[%emt 0:00:08]} 15. Ng3 {[%emt 0:02:04]} Na5 {[%emt 0:01:06]} 16. Bc2 {[%emt 0:
00:04]} Nc4 {[%emt 0:04:37]} 17. Nh2 {[%emt 0:09:54]} d5 {[%emt 0:01:58]} 18.
b3 {[%emt 0:03:59]} Nb6 {[%emt 0:03:50]} 19. dxe5 {[%emt 0:02:34]} Nxe4 {
[%emt 0:00:22]} 20. Nxe4 {[%emt 0:10:54]} dxe4 {[%emt 0:00:13]} 21. Bf4 {
[%emt 0:01:02]} f5 {[%emt 0:05:45]} 22. exf6 {[%emt 0:01:41]} Qxf6 {[%emt 0:03:
32]} 23. Qg4 {[%emt 0:28:27]} h5 {[%emt 0:03:59]} 24. Qg3 {[%emt 0:03:18]} Bd6
{[%emt 0:07:28]} 25. Bxd6 {[%emt 0:00:25]} cxd6 {[%emt 0:00:09]} 26. Rad1 {
[%emt 0:04:11]} d5 {[%emt 0:00:24]} 27. Rd4 {[%emt 0:00:42]} Rac8 {[%emt 0:10:
27]} 28. Bd1 {[%emt 0:03:40]} Re5 {[%emt 0:03:02]} 29. Be2 {[%emt 0:10:26]} Rf8
{[%emt 0:02:05]} 30. Qe3 {[%emt 0:01:56]} Nc8 {[%emt 0:00:30]} 31. Rf1 {
[%emt 0:03:14]} Nd6 {[%emt 0:02:15]} 32. f4 {[%emt 0:01:55]} exf3 {[%emt 0:04:
48]} 33. Qxf3 {[%emt 0:00:15]} Rf5 {[%emt 0:00:05]} 34. Qxh5 {[%emt 0:14:44]}
Qe7 {[%emt 0:04:23]} 35. Qg4 {[%emt 0:03:44]} Qe3+ {[%emt 0:01:40]} 36. Kh1 {
[%emt 0:00:02]} Ne4 {[%emt 0:00:33]} 37. Bf3 {[%emt 0:00:11]} Rf4 {[%emt 0:03:
43]} 38. Qe6+ {[%emt 0:02:18]} Kh8 {[%emt 0:02:43]} 39. Qg6 {[%emt 0:00:04]}
R4f5 {[%emt 0:02:15]} 40. Qg4 {[%emt 0:01:21]} Nf2+ {[%emt 0:02:44]} 41. Rxf2 {
[%emt 0:50:07]} Qxf2 {[%emt 0:50:04]} 42. Qh4+ {[%emt 0:03:46]} Qxh4 {[%emt 0:
00:53]} 43. Rxh4+ {[%emt 0:00:06]} Kg8 {[%emt 0:00:03]} 44. Rd4 {[%emt 0:00:56]
} Rc8 {[%emt 0:01:06]} 45. Rd3 {[%emt 0:00:00]} b4 {[%emt 0:00:00]} 46. Bg4 {
[%emt 0:00:00]} bxc3 {[%emt 0:00:00]} 47. Rd1 {[%emt 0:00:00]} Rf2 {[%emt 0:00:
00]} 48. Bxc8 {[%emt 0:00:00]} Bxc8 {[%emt 0:00:00]} 49. Rc1 {[%emt 0:00:00]}
Rxa2 {[%emt 0:00:00]} 50. Nf3 {[%emt 0:00:00]} c2 {[%emt 0:00:00]} 51. Nd4 {
[%emt 0:00:00]} Kf7 {[%emt 0:00:00]} 52. Nxc2 {[%emt 0:00:00]} Bf5 {[%emt 0:00:
00]} 53. Nb4 {[%emt 0:00:00]} Rb2 {[%emt 0:00:00]} 54. Nxd5 {[%emt 0:00:00]}
Be4 {[%emt 0:00:00]} 55. Nf4 {[%emt 0:00:34]} Rf2 {[%emt 0:00:00]} 56. Rc7+ {
[%emt 0:02:41]} Kg8 {[%emt 0:00:00]} 57. Rc4 {[%emt 0:05:15]} Rxf4 {[%emt 0:00:
00]} 58. Kg1 {[%emt 0:00:03]} a5 {[%emt 0:00:00]} 59. g3 {[%emt 0:00:42]} Rf3 {
[%emt 0:00:00]} 60. Rxe4 {[%emt 0:00:04]} Rxg3+ {[%emt 0:00:00]} 61. Kf2 {
[%emt 0:15:38]} Rxb3 {[%emt 0:00:00]} 62. Re8+ {[%emt 0:00:41]} Kf7 {[%emt 0:
00:00]} 63. Ra8 {[%emt 0:00:02]} Rb5 {[%emt 0:00:00]} 64. Ra6 {[%emt 0:00:29]}
g5 {[%emt 0:00:00]} 65. Kg3 {[%emt 0:00:24]} Ke7 {[%emt 0:00:00]} 66. h4 {
[%emt 0:00:39]} gxh4+ {[%emt 0:00:00]} 67. Kxh4 {[%emt 0:00:03]} Kd7 {[%emt 0:
00:00]} 68. Kg4 {[%emt 0:01:16]} Kc7 {[%emt 0:00:00]} 69. Kf4 {[%emt 0:00:00]}
Kb7 {[%emt 0:00:00]} 70. Rh6 {[%emt 0:00:00]} a4 {[%emt 0:00:00]} 71. Ke3 {
[%emt 0:00:00]} a3 {[%emt 0:00:00]} 72. Rh1 {[%emt 0:00:00]} Kb6 {[%emt 0:00:
00]} 73. Kd2 {[%emt 0:00:00]} Ka5 {[%emt 0:00:00]} 74. Kc3 {[%emt 0:00:00]} Rb4
{[%emt 0:00:00]} 75. Rh8 {[%emt 0:00:00]} 1/2-1/2

[Event "FIDE Chesscom Grand Swiss 2021"]
[Site "Riga"]
[Date "2021.11.07"]
[Round "11.36"]
[White "Sethuraman, S.P.."]
[Black "Rakhmanov, Aleksandr"]
[Result "0-1"]
[ECO "E20"]
[WhiteElo "2620"]
[BlackElo "2657"]
[Annotator "RC"]
[PlyCount "120"]
[EventDate "2021.10.27"]
[EventType "swiss"]
[EventCountry "LAT"]
[Tiebreak "Cut1 Buchholz+Sonneborn-Berger (Swiss)"]
[SourceTitle "playchess.com"]
[Source "ChessBase"]
[SourceQuality "1"]
[TimeControl "40/6000+30:20/3000+30:900+30"]

1. d4 {[%emt 0:00:16]} Nf6 {[%emt 0:00:07]} 2. c4 {[%emt 0:00:09]} e6 {[%emt 0:
00:15]} 3. g3 {[%emt 0:00:30]} Bb4+ {[%emt 0:00:40]} 4. Nc3 {[%emt 0:00:46]}
Ne4 {[%emt 0:04:22]} 5. Qc2 {[%emt 0:05:04]} Nxc3 {[%emt 0:01:51]} 6. bxc3 {
[%emt 0:00:12]} Be7 {[%emt 0:00:05]} 7. Bg2 {[%emt 0:00:29]} d6 {[%emt 0:00:38]
} 8. Nf3 {[%emt 0:24:07]} Nd7 {[%emt 0:01:20]} 9. O-O {[%emt 0:00:56]} O-O {
[%emt 0:03:29]} 10. h4 {[%emt 0:05:39]} h6 {[%emt 0:00:36]} 11. Rd1 {[%emt 0:
09:02]} Qe8 {[%emt 0:17:29]} 12. Rb1 {[%emt 0:13:07]} Nb6 {[%emt 0:04:54]} 13.
c5 {[%emt 0:06:38]} dxc5 {[%emt 0:02:30]} 14. Ne5 {[%emt 0:00:03]} Qa4 {
[%emt 0:03:59]} 15. Qd3 {[%emt 0:14:20]} c4 {[%emt 0:08:35]} 16. Qd2 {[%emt 0:
00:04]} c5 {[%emt 0:00:54]} 17. dxc5 {[%emt 0:05:02]} Bxc5 {[%emt 0:01:34]} 18.
e4 {[%emt 0:01:44]} Qa5 {[%emt 0:07:29]} 19. Ng4 {[%emt 0:01:20]} Be7 {[%emt 0:
17:06]} 20. Qe2 {[%emt 0:03:09]} e5 {[%emt 0:06:53]} 21. Ne3 {[%emt 0:08:09]}
Rd8 {[%emt 0:01:53]} 22. Nd5 {[%emt 0:03:53]} Nxd5 {[%emt 0:00:51]} 23. exd5 {
[%emt 0:00:05]} Bd6 {[%emt 0:07:46]} 24. Qxc4 {[%emt 0:00:17]} b6 {[%emt 0:00:
18]} 25. Qe2 {[%emt 0:03:25]} Bf5 {[%emt 0:04:59]} 26. Rb3 {[%emt 0:00:04]} Qa4
{[%emt 0:01:14]} 27. c4 {[%emt 0:00:10]} Rac8 {[%emt 0:00:23]} 28. Bf1 {
[%emt 0:00:59]} Qd7 {[%emt 0:01:18]} 29. Re1 {[%emt 0:01:17]} Rc7 {[%emt 0:01:
32]} 30. Ba3 {[%emt 0:00:14]} Bxa3 {[%emt 0:00:44]} 31. Rxa3 {[%emt 0:00:04]}
f6 {[%emt 0:00:21]} 32. Qd2 {[%emt 0:02:06]} Qd6 {[%emt 0:02:09]} 33. Rb3 {
[%emt 0:00:37]} Bd7 {[%emt 0:01:03]} 34. Qb2 {[%emt 0:00:46]} Kf8 {[%emt 0:02:
59]} 35. Qb1 {[%emt 0:00:21]} Kg8 {[%emt 0:00:14]} 36. Qg6 {[%emt 0:01:06]} Be8
{[%emt 0:00:25]} 37. Qe4 {[%emt 0:00:11]} Re7 {[%emt 0:03:07]} 38. g4 {[%emt 0:
01:30]} g6 {[%emt 0:01:39]} 39. Rg3 {[%emt 0:00:05]} Rdd7 {[%emt 0:01:36]} 40.
a4 {[%emt 0:00:44]} Qc5 {[%emt 0:00:34]} 41. Qf3 {[%emt 0:12:33]} Rd6 {[%emt 0:
02:34]} 42. g5 {[%emt 0:03:24]} hxg5 {[%emt 0:07:13]} 43. hxg5 {[%emt 0:01:54]}
f5 {[%emt 0:00:06]} 44. Qc3 {[%emt 0:11:47]} e4 {[%emt 0:00:30]} 45. Rh3 {
[%emt 0:00:20]} Rg7 {[%emt 0:00:29]} 46. Ra1 {[%emt 0:05:28]} Bd7 {[%emt 0:14:
34]} 47. a5 {[%emt 0:01:59]} f4 {[%emt 0:01:34]} 48. Qe5 {[%emt 0:08:28]} e3 {
[%emt 0:08:20]} 49. axb6 {[%emt 0:00:26]} exf2+ {[%emt 0:00:27]} 50. Kh2 {
[%emt 0:04:49]} Bxh3 {[%emt 0:01:41]} 51. Bxh3 {[%emt 0:04:25]} Qe3 {[%emt 0:
05:16]} 52. Be6+ {[%emt 0:00:14]} Kh8 {[%emt 0:03:43]} 53. Qxe3 {[%emt 0:01:26]
} fxe3 {[%emt 0:00:05]} 54. Kg2 {[%emt 0:00:05]} axb6 {[%emt 0:01:55]} 55. Kf3
{[%emt 0:00:33]} Ra7 {[%emt 0:03:17]} 56. Rh1+ {[%emt 0:00:58]} Rh7 {[%emt 0:
00:45]} 57. Ra1 {[%emt 0:00:40]} Rxe6 {[%emt 0:05:10]} 58. dxe6 {[%emt 0:00:04]
} Rh3+ {[%emt 0:00:09]} 59. Kg2 {[%emt 0:00:48]} Kg7 {[%emt 0:01:45]} 60. e7 {
[%emt 0:00:56]} Kf7 {[%emt 0:00:22]} 0-1

[Event "FIDE Chesscom Grand Swiss 2021"]
[Site "Riga"]
[Date "2021.11.07"]
[Round "11.37"]
[White "Gukesh D"]
[Black "Praggnanandhaa R"]
[Result "1/2-1/2"]
[ECO "D41"]
[WhiteElo "2640"]
[BlackElo "2618"]
[Annotator "RC"]
[PlyCount "68"]
[EventDate "2021.10.27"]
[EventType "swiss"]
[EventCountry "LAT"]
[Tiebreak "Cut1 Buchholz+Sonneborn-Berger (Swiss)"]
[SourceTitle "playchess.com"]
[Source "ChessBase"]
[SourceQuality "1"]
[TimeControl "40/6000+30:20/3000+30:900+30"]

1. d4 {[%emt 0:00:44]} Nf6 {[%emt 0:00:50]} 2. c4 {[%emt 0:00:35]} e6 {[%emt 0:
00:11]} 3. Nf3 {[%emt 0:01:23]} d5 {[%emt 0:00:10]} 4. Nc3 {[%emt 0:00:39]} c5
{[%emt 0:00:37]} 5. cxd5 {[%emt 0:03:05]} Nxd5 {[%emt 0:00:28]} 6. e4 {[%emt 0:
00:40]} Nxc3 {[%emt 0:00:08]} 7. bxc3 {[%emt 0:00:03]} cxd4 {[%emt 0:00:06]} 8.
cxd4 {[%emt 0:00:04]} Bb4+ {[%emt 0:00:04]} 9. Bd2 {[%emt 0:00:06]} Bxd2+ {
[%emt 0:00:05]} 10. Qxd2 {[%emt 0:00:03]} O-O {[%emt 0:00:07]} 11. Bc4 {
[%emt 0:02:13]} Nd7 {[%emt 0:00:34]} 12. O-O {[%emt 0:00:08]} b6 {[%emt 0:00:
07]} 13. Rfe1 {[%emt 0:00:12]} Bb7 {[%emt 0:00:27]} 14. Rad1 {[%emt 0:00:07]}
Rc8 {[%emt 0:00:19]} 15. Bb3 {[%emt 0:00:06]} Re8 {[%emt 0:00:24]} 16. h3 {
[%emt 0:03:32]} h6 {[%emt 0:02:10]} 17. Re3 {[%emt 0:00:06]} Nf6 {[%emt 0:00:
40]} 18. Qe2 {[%emt 0:00:07]} Qc7 {[%emt 0:05:28]} 19. Ne5 {[%emt 0:00:14]} b5
{[%emt 0:13:46]} 20. Ng4 {[%emt 0:01:16]} Nxg4 {[%emt 0:03:58]} 21. hxg4 {
[%emt 0:00:41]} Qf4 {[%emt 0:08:35]} 22. Re1 {[%emt 0:52:09]} a6 {[%emt 0:16:
33]} 23. d5 {[%emt 0:00:28]} exd5 {[%emt 0:00:56]} 24. exd5 {[%emt 0:00:06]}
Rxe3 {[%emt 0:00:58]} 25. Qxe3 {[%emt 0:00:16]} Qxe3 {[%emt 0:01:31]} 26. Rxe3
{[%emt 0:00:06]} Rd8 {[%emt 0:01:36]} 27. d6 {[%emt 0:10:30]} Rxd6 {[%emt 0:00:
48]} 28. Re8+ {[%emt 0:00:08]} Kh7 {[%emt 0:00:05]} 29. Bxf7 {[%emt 0:00:08]}
Bd5 {[%emt 0:00:33]} 30. Bxd5 {[%emt 0:00:06]} Rxd5 {[%emt 0:00:05]} 31. Ra8 {
[%emt 0:00:07]} Rd6 {[%emt 0:01:42]} 32. Ra7 {[%emt 0:01:06]} Rd1+ {[%emt 0:01:
34]} 33. Kh2 {[%emt 0:00:06]} Rd2 {[%emt 0:00:03]} 34. Rxa6 {[%emt 0:00:06]} g6
{[%emt 0:00:13]} 1/2-1/2

[Event "FIDE Chesscom Grand Swiss 2021"]
[Site "Riga"]
[Date "2021.11.07"]
[Round "11.38"]
[White "Ganguly, Surya Shekhar"]
[Black "Chigaev, Maksim"]
[Result "0-1"]
[ECO "E94"]
[WhiteElo "2617"]
[BlackElo "2639"]
[Annotator "RC"]
[PlyCount "116"]
[EventDate "2021.10.27"]
[EventType "swiss"]
[EventCountry "LAT"]
[Tiebreak "Cut1 Buchholz+Sonneborn-Berger (Swiss)"]
[SourceTitle "playchess.com"]
[Source "ChessBase"]
[SourceQuality "1"]
[TimeControl "40/6000+30:20/3000+30:900+30"]

1. Nf3 {[%emt 0:00:10]} Nf6 {[%emt 0:00:31]} 2. c4 {[%emt 0:00:46]} g6 {
[%emt 0:00:13]} 3. Nc3 {[%emt 0:00:13]} Bg7 {[%emt 0:00:07]} 4. e4 {[%emt 0:00:
07]} d6 {[%emt 0:00:07]} 5. d4 {[%emt 0:00:05]} O-O {[%emt 0:00:08]} 6. Be2 {
[%emt 0:00:03]} e5 {[%emt 0:00:16]} 7. O-O {[%emt 0:00:09]} b6 {[%emt 0:00:58]}
8. Re1 {[%emt 0:02:27]} exd4 {[%emt 0:01:02]} 9. Nxd4 {[%emt 0:00:07]} Bb7 {
[%emt 0:00:09]} 10. f3 {[%emt 0:10:12]} Nh5 {[%emt 0:00:13]} 11. f4 {[%emt 0:
04:00]} Qf6 {[%emt 0:28:55]} 12. Ndb5 {[%emt 0:06:12]} Nxf4 {[%emt 0:02:47]}
13. Nxc7 {[%emt 0:00:35]} Qg5 {[%emt 0:00:08]} 14. Bxf4 {[%emt 0:00:42]} Qxf4 {
[%emt 0:00:06]} 15. N3d5 {[%emt 0:02:45]} Qe5 {[%emt 0:04:23]} 16. Nxa8 {
[%emt 0:02:17]} Bxa8 {[%emt 0:00:06]} 17. Rb1 {[%emt 0:01:19]} Nc6 {[%emt 0:00:
24]} 18. Bf1 {[%emt 0:03:57]} Nd4 {[%emt 0:03:35]} 19. Qd2 {[%emt 0:07:24]} Qh5
{[%emt 0:05:38]} 20. Be2 {[%emt 0:05:08]} Qh4 {[%emt 0:01:23]} 21. Qf4 {
[%emt 0:01:08]} Qd8 {[%emt 0:00:47]} 22. Bd3 {[%emt 0:02:07]} Ne6 {[%emt 0:03:
35]} 23. Qf3 {[%emt 0:01:09]} Be5 {[%emt 0:00:14]} 24. Rf1 {[%emt 0:03:05]} Kg7
{[%emt 0:04:43]} 25. b3 {[%emt 0:01:21]} h5 {[%emt 0:02:34]} 26. Kh1 {[%emt 0:
03:10]} Bc6 {[%emt 0:04:40]} 27. g3 {[%emt 0:12:42]} h4 {[%emt 0:05:19]} 28. g4
{[%emt 0:02:54]} h3 {[%emt 0:00:22]} 29. Qe3 {[%emt 0:03:48]} Qh4 {[%emt 0:01:
46]} 30. Be2 {[%emt 0:00:09]} Ng5 {[%emt 0:04:25]} 31. Rbe1 {[%emt 0:02:07]}
Bd7 {[%emt 0:04:01]} 32. Rg1 {[%emt 0:06:55]} Nxe4 {[%emt 0:01:56]} 33. Rgf1 {
[%emt 0:03:41]} Ng5 {[%emt 0:01:04]} 34. Qf2 {[%emt 0:00:45]} Qxf2 {[%emt 0:00:
58]} 35. Rxf2 {[%emt 0:00:05]} Ne4 {[%emt 0:12:42]} 36. Rff1 {[%emt 0:01:48]}
Bd4 {[%emt 0:03:39]} 37. Rf4 {[%emt 0:02:27]} Re8 {[%emt 0:00:05]} 38. Ref1 {
[%emt 0:00:33]} f5 {[%emt 0:01:03]} 39. Bd3 {[%emt 0:04:08]} g5 {[%emt 0:04:57]
} 40. Bxe4 {[%emt 0:01:02]} gxf4 {[%emt 0:02:59]} 41. Bxf5 {[%emt 0:51:38]} Bc6
{[%emt 0:50:59]} 42. g5 {[%emt 0:04:49]} Re3 {[%emt 0:00:23]} 43. Rd1 {[%emt 0:
02:23]} Bc5 {[%emt 0:02:15]} 44. b4 {[%emt 0:00:32]} Bxd5+ {[%emt 0:01:14]} 45.
cxd5 {[%emt 0:00:10]} Bxb4 {[%emt 0:00:12]} 46. Kg1 {[%emt 0:00:31]} Bc5 {
[%emt 0:00:18]} 47. Kf1 {[%emt 0:00:05]} Rf3+ {[%emt 0:01:54]} 48. Ke1 {
[%emt 0:00:24]} Bb4+ {[%emt 0:00:00]} 49. Ke2 {[%emt 0:00:00]} Ra3 {[%emt 0:00:
00]} 50. Rd4 {[%emt 0:00:00]} f3+ {[%emt 0:00:00]} 51. Kf1 {[%emt 0:00:00]} Bc5
{[%emt 0:00:00]} 52. Rd3 {[%emt 0:00:00]} Rxa2 {[%emt 0:00:00]} 53. Rxf3 {
[%emt 0:00:00]} Rxh2 {[%emt 0:00:00]} 54. Be4 {[%emt 0:00:00]} a5 {[%emt 0:00:
00]} 55. g6 {[%emt 0:00:00]} a4 {[%emt 0:00:00]} 56. Rf7+ {[%emt 0:00:00]} Kg8
{[%emt 0:00:00]} 57. Ke1 {[%emt 0:00:00]} a3 {[%emt 0:00:00]} 58. Ra7 {[%emt 0:
00:00]} b5 {[%emt 0:00:00]} 0-1

[Event "FIDE Chesscom Grand Swiss 2021"]
[Site "Riga"]
[Date "2021.11.07"]
[Round "11.39"]
[White "Ponomariov, Ruslan"]
[Black "Jobava, Baadur"]
[Result "1-0"]
[ECO "D11"]
[WhiteElo "2631"]
[BlackElo "2582"]
[Annotator "RC"]
[PlyCount "67"]
[EventDate "2021.10.27"]
[EventType "swiss"]
[EventCountry "LAT"]
[Tiebreak "Cut1 Buchholz+Sonneborn-Berger (Swiss)"]
[SourceTitle "playchess.com"]
[Source "ChessBase"]
[SourceQuality "1"]
[TimeControl "40/6000+30:20/3000+30:900+30"]

1. d4 {[%emt 0:00:04]} d5 {[%emt 0:03:42]} 2. c4 {[%emt 0:00:16]} c6 {[%emt 0:
00:04]} 3. Nf3 {[%emt 0:00:18]} Nf6 {[%emt 0:00:07]} 4. g3 {[%emt 0:00:25]} Bf5
{[%emt 0:00:54]} 5. Nc3 {[%emt 0:00:48]} e6 {[%emt 0:00:07]} 6. Nh4 {[%emt 0:
00:34]} dxc4 {[%emt 0:12:10]} 7. Nxf5 {[%emt 0:01:29]} exf5 {[%emt 0:04:40]} 8.
e3 {[%emt 0:00:05]} b5 {[%emt 0:03:45]} 9. Bg2 {[%emt 0:10:48]} Bb4 {[%emt 0:
08:48]} 10. O-O {[%emt 0:04:48]} Bxc3 {[%emt 0:00:06]} 11. bxc3 {[%emt 0:00:05]
} O-O {[%emt 0:00:05]} 12. a4 {[%emt 0:04:50]} Ne4 {[%emt 0:04:21]} 13. Qc2 {
[%emt 0:02:54]} Nd7 {[%emt 0:19:42]} 14. g4 {[%emt 0:16:20]} g6 {[%emt 0:01:22]
} 15. gxf5 {[%emt 0:03:05]} gxf5 {[%emt 0:00:07]} 16. f3 {[%emt 0:00:15]} Nd6 {
[%emt 0:00:32]} 17. e4 {[%emt 0:06:53]} Nb6 {[%emt 0:00:13]} 18. e5 {[%emt 0:
03:41]} Ndc8 {[%emt 0:08:58]} 19. axb5 {[%emt 0:02:50]} cxb5 {[%emt 0:06:06]}
20. Qxf5 {[%emt 0:08:17]} Ne7 {[%emt 0:04:13]} 21. Qh5 {[%emt 0:02:42]} Nbd5 {
[%emt 0:06:22]} 22. Ra6 {[%emt 0:05:05]} Nxc3 {[%emt 0:03:42]} 23. Rd6 {
[%emt 0:01:44]} Qe8 {[%emt 0:00:51]} 24. Bh6 {[%emt 0:06:05]} Ng6 {[%emt 0:18:
50]} 25. f4 {[%emt 0:10:58]} Rd8 {[%emt 0:00:04]} 26. f5 {[%emt 0:03:28]} Rxd6
{[%emt 0:00:05]} 27. exd6 {[%emt 0:00:08]} Qe2 {[%emt 0:00:19]} 28. Bf3 {
[%emt 0:00:22]} Qd3 {[%emt 0:00:07]} 29. Bxf8 {[%emt 0:00:13]} Qxd4+ {[%emt 0:
02:06]} 30. Kh1 {[%emt 0:00:09]} Kxf8 {[%emt 0:01:18]} 31. fxg6 {[%emt 0:03:21]
} hxg6 {[%emt 0:00:06]} 32. Qh7 {[%emt 0:00:12]} Ne4 {[%emt 0:00:54]} 33. d7 {
[%emt 0:01:22]} Nc5 {[%emt 0:00:20]} 34. Bc6 {[%emt 0:01:06]} 1-0